fUST/lending_fUST_20241126
["ID","MTS","AMOUNT","RATE_DAILY","PERIOD"]
[343308430,1732555848220,-336.4785496,0.00029534,30]
[343308431,1732555848300,-153.0,0.00029534,30]
[343308432,1732555848310,-153.0,0.00029534,30]
[343308433,1732555848323,-153.0,0.00029534,30]
[343308434,1732555848333,-153.0,0.00029534,30]
[343308435,1732555848343,-153.0,0.00029534,30]
[343308436,1732555848352,-153.0,0.00029534,30]
[343308437,1732555848362,-153.0,0.00029534,30]
[343308438,1732555848372,-306.0,0.00029534,30]
[343308439,1732555848381,-17948.0,0.000296,3]
[343308440,1732555848391,-32765.507581,0.0002961,2]
[343308441,1732555848400,-151.0,0.00029616,7]
[343308442,1732555848410,-151.929858,0.00029616,7]
[343308443,1732555848419,-151.0,0.00029616,7]
[343308444,1732555848427,-299.13424,0.00029616,7]
[343308445,1732555848436,-151.629466,0.00029616,7]
[343308446,1732555848446,-151.0,0.00029619,7]
[343308447,1732555848455,-151.0,0.00029619,7]
[343308448,1732555848464,-151.0,0.00029619,7]
[343308449,1732555848473,-151.0,0.00029619,7]
[343308450,1732555848482,-151.0,0.00029619,7]
[343308451,1732555848492,-151.0,0.00029619,7]
[343308452,1732555848501,-151.0,0.00029619,7]
[343308453,1732555848511,-151.0,0.00029619,7]
[343308454,1732555848520,-151.0,0.00029619,7]
[343308455,1732555848529,-151.612786,0.00029619,7]
[343308456,1732555848539,-152.567694,0.00029619,7]
[343308457,1732555848548,-151.0,0.00029619,7]
[343308458,1732555848558,-151.0,0.00029619,7]
[343308459,1732555848570,-151.0,0.00029619,7]
[343308460,1732555848580,-151.0,0.00029619,7]
[343308461,1732555848589,-151.0,0.00029619,7]
[343308462,1732555848599,-151.0,0.00029619,7]
[343308463,1732555848608,-151.0,0.00029619,7]
[343308464,1732555848618,-151.0,0.00029619,7]
[343308465,1732555848627,-267.172889,0.00029619,7]
[343308466,1732555848637,-151.0,0.00029619,7]
[343308467,1732555848652,-151.0,0.00029619,7]
[343308468,1732555848661,-151.0,0.00029619,7]
[343308469,1732555848670,-151.0,0.00029619,7]
[343308470,1732555848679,-168.355526,0.00029619,7]
[343308471,1732555848691,-151.0,0.00029619,7]
[343308472,1732555848701,-151.0,0.00029619,7]
[343308473,1732555848710,-151.0,0.00029619,7]
[343308474,1732555848720,-151.0,0.00029619,7]
[343308475,1732555848730,-151.0,0.00029619,7]
[343308476,1732555848740,-151.0,0.00029619,7]
[343308477,1732555848750,-151.0,0.00029619,7]
[343308478,1732555848759,-151.0,0.00029619,7]
[343308479,1732555848768,-151.0,0.00029619,7]
[343308480,1732555848778,-151.0,0.00029619,7]
[343308481,1732555848788,-151.0,0.00029619,7]
[343308482,1732555848798,-151.0,0.00029619,7]
[343308483,1732555848808,-151.0,0.00029619,7]
[343308484,1732555848820,-151.0,0.00029619,7]
[343308485,1732555848830,-151.0,0.00029619,7]
[343308486,1732555848840,-151.0,0.00029619,7]
[343308487,1732555848850,-151.0,0.00029619,7]
[343308488,1732555848859,-288.612418,0.00029619,7]
[343308489,1732555848870,-151.0,0.00029619,7]
[343308490,1732555848879,-151.0,0.00029619,7]
[343308491,1732555848889,-233.721152,0.00029619,7]
[343308492,1732555848899,-151.0,0.00029619,7]
[343308493,1732555848908,-151.0,0.00029619,7]
[343308494,1732555848918,-151.0,0.00029619,7]
[343308495,1732555848928,-151.0,0.00029619,7]
[343308496,1732555848938,-151.0,0.00029619,7]
[343308497,1732555848947,-151.0,0.00029619,7]
[343308498,1732555848957,-151.0,0.00029619,7]
[343308499,1732555848967,-151.0,0.00029619,7]
[343308500,1732555848977,-151.0,0.00029619,7]
[343308501,1732555848986,-151.0,0.00029619,7]
[343308502,1732555848995,-151.0,0.00029619,7]
[343308503,1732555849005,-151.0,0.00029619,7]
[343308504,1732555849015,-151.0,0.00029619,7]
[343308505,1732555849024,-151.0,0.00029619,7]
[343308506,1732555849033,-151.0,0.00029619,7]
[343308507,1732555849043,-151.0,0.00029619,7]
[343308508,1732555849052,-161.544358,0.00029619,7]
[343308509,1732555849061,-151.0,0.00029619,7]
[343308510,1732555849075,-159.751844,0.00029619,7]
[343308511,1732555849084,-151.0,0.00029619,7]
[343308512,1732555849093,-151.0,0.00029619,7]
[343308513,1732555849103,-151.0,0.00029619,7]
[343308514,1732555849113,-151.0,0.00029619,7]
[343308515,1732555849123,-151.0,0.00029619,7]
[343308516,1732555849133,-151.0,0.00029619,7]
[343308517,1732555849142,-195.295578,0.00029619,7]
[343308518,1732555849152,-151.0,0.00029619,7]
[343308519,1732555849161,-151.0,0.00029619,7]
[343308520,1732555849171,-151.0,0.00029619,7]
[343308521,1732555849180,-151.0,0.00029619,7]
[343308522,1732555849190,-240.926131,0.00029619,7]
[343308523,1732555849200,-151.0,0.00029619,7]
[343308524,1732555849210,-151.0,0.00029619,7]
[343308525,1732555849219,-151.0,0.00029619,7]
[343308526,1732555849229,-151.0,0.00029619,7]
[343308527,1732555849239,-151.0,0.00029619,7]
[343308528,1732555849248,-151.0,0.00029619,7]
[343308529,1732555849258,-151.0,0.00029619,7]
[343308530,1732555849267,-151.0,0.00029619,7]
[343308531,1732555849277,-151.0,0.00029619,7]
[343308532,1732555849286,-151.0,0.00029619,7]
[343308533,1732555849295,-151.0,0.00029619,7]
[343308534,1732555849305,-151.0,0.00029619,7]
[343308535,1732555849314,-151.0,0.00029619,7]
[343308536,1732555849326,-151.0,0.00029619,7]
[343308537,1732555849335,-151.0,0.00029619,7]
[343308538,1732555849344,-151.0,0.00029619,7]
[343308539,1732555849354,-151.0,0.00029619,7]
[343308540,1732555849363,-151.0,0.00029619,7]
[343308541,1732555849372,-151.0,0.00029619,7]
[343308542,1732555849382,-151.0,0.00029619,7]
[343308543,1732555849392,-199.805329,0.00029619,7]
[343308544,1732555849402,-151.0,0.00029619,7]
[343308545,1732555849411,-151.0,0.00029619,7]
[343308546,1732555849421,-151.0,0.00029619,7]
[343308547,1732555849430,-151.0,0.00029619,7]
[343308548,1732555849440,-151.0,0.00029619,7]
[343308549,1732555849449,-151.0,0.00029619,7]
[343308550,1732555849459,-151.0,0.00029619,7]
[343308551,1732555849468,-151.0,0.00029619,7]
[343308552,1732555849477,-151.0,0.00029619,7]
[343308553,1732555849486,-151.0,0.00029619,7]
[343308554,1732555849497,-214.510914,0.00029619,7]
[343308555,1732555849507,-154.59903876,0.00029619,2]
[343308556,1732555849517,-154.59903876,0.00029619,2]
[343308557,1732555849526,-1849977.3005932,0.00029619,10]
[343308558,1732555849929,-1041.29288833,0.00029619,10]
[343308559,1732555849941,-37576.49999978,0.00029619,10]
[343308560,1732555849953,-459.17317902,0.00029619,10]
[343308561,1732555850013,-9129.8581573,0.0002857,2]
[343308562,1732555850022,-1949.9395927,0.00029619,10]
[343308563,1732555850040,-1200.75,0.0002879,2]
[343308564,1732555850053,-7929.1081573,0.0002879,2]
[343308565,1732555850063,-12551.7918425,0.00029619,10]
[343308566,1732555850084,-13558.7373856,0.00029619,10]
[343308567,1732555850131,-199.9,0.00024169,3]
[343308568,1732555850141,-348.7768004,0.00025539,3]
[343308569,1732555850154,-51.0231996,0.00025539,3]
[343308570,1732555850164,-188.704,0.00028305,2]
[343308571,1732555850173,-4768.24098026,0.00029241,2]
[343308572,1732555850185,-4361.61717705,0.00029241,2]
[343308573,1732555850195,-336.73498205,0.00029522,2]
[343308574,1732555850205,-36976.99533651,0.00029619,10]
[343308575,1732555850360,-1000.0,0.00029503,2]
[343308576,1732555850370,-807.61,0.00029506,2]
[343308577,1732555850381,-192.39,0.00029506,2]
[343308578,1732555850391,-841.7388274,0.00029525,2]
[343308579,1732555850401,-1000.0,0.00029541,2]
[343308580,1732555850411,-1000.0,0.00029546,2]
[343308581,1732555850421,-1000.0,0.00029554,2]
[343308582,1732555850430,-1000.0,0.00029569,2]
[343308583,1732555850441,-1000.0,0.00029571,2]
[343308584,1732555850450,-1000.0,0.00029584,2]
[343308585,1732555850460,-1000.0,0.00029602,2]
[343308586,1732555850469,-1000.0,0.00029604,2]
[343308587,1732555850478,-1000.0,0.0002961,2]
[343308588,1732555850488,-304.6760457,0.00029616,30]
[343308589,1732555850497,-11557.8454696,0.00029619,10]
[343308590,1732555850510,-5888.99468298,0.00029619,10]
[343308591,1732555850521,-5637.34347317,0.00029619,10]
[343308592,1732555850532,-1393.49965777,0.00029619,10]
[343308593,1732555850555,-7200.69162263,0.00029619,10]
[343308594,1732555850570,-4465.18199831,0.00029619,10]
[343308595,1732555850622,1000.0,0.00030137,120]
[343308596,1732555850653,-265.91552206,0.00029619,10]
[343308605,1732556213294,163.049829,0.00013973,2]
[343308607,1732556407942,232.45503012,0.00022,2]
[343308610,1732556847150,-422.899788,0.00022016,2]
[343308611,1732556847172,-500.0,0.00023041,2]
[343308612,1732556847193,-500.0,0.00023041,2]
[343308613,1732556847215,-500.0,0.00023041,2]
[343308614,1732556847235,-500.0,0.00023041,2]
[343308615,1732556847259,-522.37,0.00023041,2]
[343308616,1732556847282,-274.06,0.00023315,2]
[343308617,1732556847307,-279.64055805,0.00023323,2]
[343308653,1732557032483,-500.0,0.00023041,2]
[343308654,1732557032493,-500.0,0.00023041,2]
[343308655,1732557032503,-500.0,0.00023041,2]
[343308656,1732557032517,-318.37185273,0.00023041,2]
[343308663,1732557032571,-181.62814727,0.00023041,2]
[343308665,1732557032580,-7454.685342,0.00023091,2]
[343308667,1732557032589,-211.449894,0.00023187,2]
[343308668,1732557032599,-300.0,0.00023323,2]
[343308669,1732557032608,-300.0,0.00023323,2]
[343308670,1732557032617,-500.0,0.00023324,2]
[343308671,1732557032626,-20162.9744678,0.00023324,2]
[343308672,1732557032635,-204.28405147,0.00023598,2]
[343308673,1732557032645,-213.33205762,0.000236,2]
[343308674,1732557032655,-7454.685342,0.00023776,2]
[343308675,1732557032664,-197.7017526,0.00024316,2]
[343308676,1732557032673,-7454.685342,0.00024461,2]
[343308677,1732557032682,-174.51190935,0.0002459,2]
[343308678,1732557032691,-227.74371162,0.00024688,2]
[343308679,1732557032701,-500.0,0.00024689,2]
[343308680,1732557032710,-500.0,0.00024689,2]
[343308681,1732557032719,-500.0,0.00024689,2]
[343308682,1732557032728,-589.42,0.00024689,2]
[343308683,1732557032738,-500.0,0.00024689,2]
[343308684,1732557032747,-502.19825277,0.00024689,2]
[343308685,1732557032756,-500.0,0.00024689,2]
[343308686,1732557032771,-500.0,0.00024689,2]
[343308687,1732557032780,-500.0,0.00024689,2]
[343308688,1732557032789,-500.0,0.00024689,2]
[343308689,1732557032798,-500.0,0.00024689,2]
[343308690,1732557032807,-500.0,0.00024689,2]
[343308691,1732557032817,-520.49,0.00024689,2]
[343308692,1732557032825,-500.0,0.00024689,2]
[343308693,1732557032834,-174.54,0.00024963,2]
[343308694,1732557032843,-500.0,0.00024963,2]
[343308695,1732557032853,-500.0,0.00025237,2]
[343308696,1732557032862,-420.0,0.0002531,2]
[343308697,1732557032872,-203.424,0.00025344,9]
[343308698,1732557032881,-278.38988797,0.00025344,2]
[343308699,1732557032890,-500.0,0.00025511,2]
[343308700,1732557032900,-420.0,0.00025656,2]
[343308701,1732557032909,-500.0,0.00025785,2]
[343308702,1732557032919,-500.0,0.00026059,2]
[343308703,1732557032928,-679.33,0.00026328,2]
[343308704,1732557032937,-500.0,0.00026328,2]
[343308705,1732557032946,-500.0,0.00026333,2]
[343308706,1732557032955,-679.33,0.00026602,2]
[343308707,1732557032964,-500.0,0.00026602,2]
[343308708,1732557032973,-500.0,0.00026607,2]
[343308709,1732557032982,-679.33,0.00026876,2]
[343308710,1732557032991,-500.0,0.00026876,2]
[343308711,1732557033000,-500.0,0.00026881,2]
[343308712,1732557033010,-599.71,0.0002699,3]
[343308713,1732557033020,-344.82,0.0002699,10]
[343308714,1732557033032,-590.45,0.0002699,10]
[343308715,1732557033042,-492.04,0.0002699,10]
[343308716,1732557033051,-500.0,0.00026999,2]
[343308717,1732557033061,-182.25126604,0.00026999,2]
[343308718,1732557033072,-175.08240953,0.00026999,2]
[343308719,1732557033082,-162.17321865,0.00026999,2]
[343308720,1732557033092,-500.0,0.00026999,2]
[343308721,1732557033103,-431.54768451,0.00026999,2]
[343308722,1732557033113,-500.0,0.00026999,2]
[343308723,1732557033122,-500.0,0.00026999,2]
[343308724,1732557033132,-500.0,0.00026999,2]
[343308725,1732557033141,-500.0,0.00026999,2]
[343308726,1732557033150,-500.0,0.00026999,2]
[343308727,1732557033159,-500.0,0.00026999,2]
[343308728,1732557033169,-198423.58043871,0.00027,30]
[343308729,1732557033178,-174.51190933,0.00027058,2]
[343308730,1732557033188,-679.33,0.0002715,2]
[343308731,1732557033197,-500.0,0.0002715,2]
[343308732,1732557033207,-500.0,0.00027155,2]
[343308733,1732557033217,-500.0,0.00027397,2]
[343308734,1732557033227,-679.33,0.00027424,2]
[343308735,1732557033237,-427.00708674,0.00027424,2]
[343308736,1732557033248,-500.0,0.00027429,2]
[343308737,1732557033257,-587.0,0.00027467,2]
[343308738,1732557033269,-679.33,0.00027698,2]
[343308739,1732557033279,-500.0,0.00027703,2]
[343308740,1732557033288,-679.33,0.00027972,2]
[343308741,1732557033298,-500.0,0.00027976,2]
[343308742,1732557033308,-500.0,0.00027999,7]
[343308743,1732557033318,-679.33,0.00028246,2]
[343308744,1732557033328,-500.0,0.0002825,2]
[343308745,1732557033338,-310.0370861,0.00028425,2]
[343308746,1732557033347,-679.33,0.0002852,2]
[343308747,1732557033357,-500.0,0.00028524,2]
[343308748,1732557033367,-500.0,0.00028616,7]
[343308749,1732557033377,-1023.30860735,0.000287,2]
[343308750,1732557033386,-500.0,0.00028767,4]
[343308751,1732557033396,-679.33,0.00028794,2]
[343308752,1732557033405,-500.0,0.00028798,2]
[343308753,1732557033415,-275.0,0.000288,2]
[343308754,1732557033424,-150.0,0.00029068,2]
[343308755,1732557033434,-531.0,0.00029068,2]
[343308756,1732557033443,-2379.0,0.00029068,2]
[343308757,1732557033453,-1105.0,0.00029068,2]
[343308758,1732557033462,-150.06,0.00029068,2]
[343308759,1732557033472,-679.33,0.00029068,2]
[343308760,1732557033481,-500.0,0.00029072,2]
[343308761,1732557033490,-1248.35,0.000293,2]
[343308762,1732557033500,-679.33,0.00029342,2]
[343308763,1732557033512,-500.0,0.00029346,2]
[343308764,1732557033522,-243.13680008,0.00029419,2]
[343308765,1732557033630,-1000.0,0.00029494,2]
[343308766,1732557033640,-1000.0,0.00029518,2]
[343308767,1732557033650,-2333.0,0.00029518,2]
[343308768,1732557033659,-330.0,0.00029519,2]
[343308769,1732557033669,-174.51190933,0.00029525,2]
[343308770,1732557033678,-1000.0,0.00029572,2]
[343308771,1732557033688,-1000.0,0.00029576,2]
[343308772,1732557033698,-1000.0,0.00029577,2]
[343308773,1732557033707,-4463.00455062,0.00029577,2]
[343308774,1732557033717,-151.0,0.000296,14]
[343308775,1732557033726,-1000.0,0.00029604,2]
[343308776,1732557033736,-679.33,0.00029616,2]
[343308777,1732557033746,-183.54812665,0.00029618,2]
[343308778,1732557033756,-8158.7214195,0.00029618,2]
[343308779,1732557033768,-500.0,0.0002962,2]
[343308780,1732557033778,-278.38988797,0.00029624,2]
[343308781,1732557033788,-278.38988797,0.00029624,2]
[343308782,1732557033797,-543076.93355245,0.00029625,10]
[343308822,1732557038637,-500.0,0.00023041,2]
[343308824,1732557038647,-410.04,0.0002699,10]
[343308825,1732557038656,-500.0,0.00026999,2]
[343308827,1732557038666,-500.0,0.00026999,2]
[343308829,1732557038676,-219.00178224,0.00026999,2]
[343308831,1732557038685,-500.0,0.00026999,2]
[343308833,1732557038695,-500.0,0.00026999,2]
[343308834,1732557038704,-301.74780249,0.00026999,2]
[343308836,1732557038714,-580.40200368,0.00026999,2]
[343308838,1732557038723,-500.0,0.00026999,2]
[343308840,1732557038733,-500.0,0.00026999,2]
[343308842,1732557038742,-500.0,0.00026999,2]
[343308843,1732557038752,-266.311757,0.00026999,2]
[343308845,1732557038761,-500.0,0.00026999,2]
[343308847,1732557038774,-500.0,0.00026999,2]
[343308849,1732557038784,-500.0,0.00026999,2]
[343308851,1732557038793,-500.0,0.00026999,2]
[343308853,1732557038803,-500.0,0.00026999,2]
[343308855,1732557038813,-500.0,0.00026999,2]
[343308857,1732557038823,-500.0,0.00026999,2]
[343308858,1732557038832,-500.0,0.00026999,2]
[343308860,1732557038842,-500.0,0.00026999,2]
[343308862,1732557038852,-500.0,0.00026999,2]
[343308864,1732557038861,-500.0,0.00026999,2]
[343308866,1732557038871,-500.0,0.00026999,2]
[343308868,1732557038881,-500.0,0.00026999,2]
[343308869,1732557038890,-500.0,0.00026999,2]
[343308871,1732557038900,-500.0,0.00026999,2]
[343308873,1732557038909,-500.0,0.00026999,2]
[343308875,1732557038919,-500.0,0.00026999,2]
[343308877,1732557038928,-271.88756071,0.00026999,2]
[343308879,1732557038938,-500.0,0.00026999,2]
[343308880,1732557038947,-500.0,0.00026999,2]
[343308882,1732557038957,-500.0,0.00026999,2]
[343308884,1732557038966,-500.0,0.00026999,2]
[343308886,1732557038976,-500.0,0.00026999,2]
[343308888,1732557038987,-500.0,0.00026999,2]
[343308889,1732557038996,-500.0,0.00026999,2]
[343308891,1732557039007,-432.05281397,0.00026999,2]
[343308893,1732557039023,-500.0,0.00026999,2]
[343308895,1732557039036,-500.0,0.00026999,2]
[343308897,1732557039045,-500.0,0.00026999,2]
[343308899,1732557039056,-500.0,0.00026999,2]
[343308900,1732557039066,-500.0,0.00026999,2]
[343308902,1732557039076,-500.0,0.00026999,2]
[343308904,1732557039086,-500.0,0.00026999,2]
[343308906,1732557039096,-500.0,0.00026999,2]
[343308908,1732557039105,-500.0,0.00026999,2]
[343308910,1732557039115,-500.0,0.00026999,2]
[343308911,1732557039125,-500.0,0.00026999,2]
[343308913,1732557039135,-500.0,0.00026999,2]
[343308915,1732557039144,-500.0,0.00026999,2]
[343308917,1732557039153,-500.0,0.00026999,2]
[343308918,1732557039162,-500.0,0.00026999,2]
[343308920,1732557039172,-500.0,0.00026999,2]
[343308922,1732557039181,-500.0,0.00026999,2]
[343308924,1732557039190,-298.32864963,0.00026999,2]
[343308926,1732557039200,-500.0,0.00026999,2]
[343308928,1732557039209,-500.0,0.00026999,2]
[343308930,1732557039220,-500.0,0.00026999,2]
[343308931,1732557039229,-500.0,0.00026999,2]
[343308933,1732557039238,-500.0,0.00026999,2]
[343308935,1732557039248,-500.0,0.00026999,2]
[343308937,1732557039257,-500.0,0.00026999,2]
[343308939,1732557039267,-64400.22763029,0.00029625,10]
[343308941,1732557039281,-596.49999998,0.00029625,10]
[343308943,1732557039301,-4554.89461849,0.00029625,10]
[343308974,1732557040369,-710.77732684,0.00029625,10]
[343308975,1732557040380,-47472.9673786,0.00029625,10]
[343309012,1732557352902,163.049829,0.00013973,2]
[343309029,1732558044139,-300.0,0.00023323,2]
[343309030,1732558044162,-224.74841226,0.00023323,2]
[343309031,1732558089595,500.0,0.00030137,120]
[343309053,1732558232519,-206.0,0.00023323,2]
[343309056,1732558232529,-208.0,0.00023323,2]
[343309058,1732558232539,-870.0,0.00023323,2]
[343309060,1732558232549,-500.0,0.00023324,2]
[343309062,1732558232559,-500.0,0.00023324,2]
[343309063,1732558232569,-500.0,0.00023324,2]
[343309065,1732558232578,-500.0,0.00023324,2]
[343309067,1732558232588,-500.0,0.00023324,2]
[343309069,1732558232599,-518.79,0.00023324,2]
[343309071,1732558232609,-500.0,0.00023324,2]
[343309073,1732558232619,-500.0,0.00023324,2]
[343309075,1732558232629,-430.62,0.00023598,2]
[343309077,1732558232639,-500.0,0.00024689,2]
[343309079,1732558232649,-500.0,0.00024689,2]
[343309081,1732558232658,-500.0,0.00024689,2]
[343309083,1732558232668,-500.0,0.00024689,2]
[343309085,1732558232678,-211.449895,0.00024879,2]
[343309087,1732558232687,-194.8187867,0.00024994,2]
[343309089,1732558232696,-500.0,0.00025999,2]
[343309091,1732558232711,-500.0,0.00025999,2]
[343309093,1732558232720,-392.1213183,0.00025999,2]
[343309097,1732558232765,-107.8786817,0.00025999,2]
[343309098,1732558232774,-500.0,0.00025999,2]
[343309099,1732558232783,-615.608494,0.00025999,2]
[343309100,1732558232793,-599.831799,0.00025999,2]
[343309101,1732558232802,-1000.5,0.00026,31]
[343309102,1732558232812,-1000.5,0.00026,31]
[343309103,1732558232821,-1000.5,0.00026,31]
[343309104,1732558232830,-1000.5,0.00026,31]
[343309105,1732558232839,-1000.5,0.00026,31]
[343309107,1732558232849,-1000.5,0.00026,31]
[343309108,1732558232858,-150.5,0.00026,31]
[343309109,1732558232867,-151.9,0.00026,31]
[343309111,1732558232876,-500.0,0.00026273,2]
[343309113,1732558232885,-500.0,0.00026547,2]
[343309115,1732558232895,-500.0,0.00026821,2]
[343309117,1732558232904,-500.0,0.00027397,2]
[343309118,1732558232914,-162.739,0.00027429,16]
[343309119,1732558232924,-153.0,0.00028027,30]
[343309120,1732558232934,-153.0,0.00028027,30]
[343309121,1732558232944,-153.0,0.00028027,30]
[343309122,1732558232955,-152.9828948,0.000281,2]
[343309123,1732558232964,-500.0,0.00028199,2]
[343309124,1732558232974,-610.52,0.000282,31]
[343309125,1732558232984,-610.52,0.000282,31]
[343309126,1732558232993,-610.52,0.000282,31]
[343309127,1732558233002,-610.52,0.000282,31]
[343309128,1732558233011,-610.52,0.000282,31]
[343309129,1732558233021,-610.52,0.000282,31]
[343309130,1732558233031,-610.52,0.000282,31]
[343309131,1732558233040,-610.52,0.000282,31]
[343309132,1732558233050,-610.52,0.000282,31]
[343309133,1732558233061,-610.52,0.000282,31]
[343309134,1732558233071,-610.52,0.000282,31]
[343309135,1732558233081,-610.52,0.000282,31]
[343309136,1732558233091,-500.0,0.00028473,2]
[343309137,1732558233101,-610.52,0.000285,31]
[343309138,1732558233110,-610.52,0.000285,31]
[343309139,1732558233120,-610.52,0.000285,31]
[343309140,1732558233131,-610.52,0.000285,31]
[343309141,1732558233141,-610.52,0.000285,31]
[343309142,1732558233152,-610.52,0.000285,31]
[343309143,1732558233162,-610.52,0.000285,31]
[343309144,1732558233172,-610.52,0.000285,31]
[343309145,1732558233183,-610.52,0.000285,31]
[343309146,1732558233192,-610.52,0.000285,31]
[343309147,1732558233205,-610.52,0.000285,31]
[343309148,1732558233214,-610.52,0.000285,31]
[343309149,1732558233224,-610.52,0.000285,31]
[343309150,1732558233234,-610.52,0.000285,31]
[343309151,1732558233245,-610.52,0.000285,31]
[343309152,1732558233255,-610.52,0.000285,31]
[343309153,1732558233265,-610.52,0.000285,31]
[343309154,1732558233275,-610.52,0.000285,31]
[343309155,1732558233285,-610.52,0.000285,31]
[343309156,1732558233295,-610.52,0.000285,31]
[343309157,1732558233305,-610.52,0.000285,31]
[343309158,1732558233315,-610.52,0.000285,31]
[343309159,1732558233324,-610.52,0.000285,31]
[343309160,1732558233334,-610.52,0.000285,31]
[343309161,1732558233344,-654.08891498,0.000285,2]
[343309162,1732558233354,-157.59038912,0.00028616,7]
[343309213,1732558238959,-342.40961088,0.00028616,7]
[343309214,1732558238974,-500.0,0.00028747,2]
[343309215,1732558238984,-218.93300806,0.00028767,4]
[343309216,1732558238993,-304.6760457,0.00028795,30]
[343309217,1732558239003,-323.91162738,0.000288,2]
[343309218,1732558239012,-105.20312128,0.00028849,30]
[343309219,1732558239024,-200.79687872,0.00028849,30]
[343309220,1732558239034,-212.7413024,0.00028849,30]
[343309221,1732558239043,-153.0,0.00028849,30]
[343309222,1732558239052,-153.0,0.00028849,30]
[343309223,1732558239062,-153.0,0.00028849,30]
[343309224,1732558239071,-212.7413024,0.00028849,30]
[343309225,1732558239081,-212.7413024,0.00028849,30]
[343309226,1732558239091,-153.0,0.00028849,30]
[343309227,1732558239100,-212.7413024,0.00028849,30]
[343309228,1732558239110,-212.7413024,0.00028849,30]
[343309229,1732558239120,-212.7413024,0.00028849,30]
[343309230,1732558239129,-212.7413024,0.00028849,30]
[343309231,1732558239139,-610.52,0.000289,31]
[343309232,1732558239148,-610.52,0.000289,31]
[343309233,1732558239158,-610.52,0.000289,31]
[343309234,1732558239168,-610.52,0.000289,31]
[343309235,1732558239177,-610.52,0.000289,31]
[343309236,1732558239186,-610.52,0.000289,31]
[343309237,1732558239195,-610.52,0.000289,31]
[343309238,1732558239208,-610.52,0.000289,31]
[343309239,1732558239217,-610.52,0.000289,31]
[343309240,1732558239227,-610.52,0.000289,31]
[343309241,1732558239237,-610.52,0.000289,31]
[343309242,1732558239247,-610.52,0.000289,31]
[343309243,1732558239256,-610.52,0.000289,31]
[343309244,1732558239265,-610.52,0.000289,31]
[343309245,1732558239274,-610.52,0.000289,31]
[343309246,1732558239283,-597.21399448,0.000289,31]
[343309247,1732558239296,-13.30600552,0.000289,31]
[343309248,1732558239305,-386.52119311,0.000289,31]
[343309249,1732558239406,-223.99880689,0.000289,31]
[343309250,1732558239418,-610.52,0.000289,31]
[343309251,1732558239427,-610.52,0.000289,31]
[343309252,1732558239441,-360.69952792,0.000289,31]
[343309261,1732558240488,-249.82047208,0.000289,31]
[343309262,1732558240498,-610.52,0.000289,31]
[343309263,1732558240509,-610.52,0.000289,31]
[343309264,1732558240519,-539.79597813,0.000289,31]
[343309265,1732558240571,-70.72402187,0.000289,31]
[343309266,1732558240581,-610.52,0.000289,31]